fUST/lending_fUST_20260615
["ID","MTS","AMOUNT","RATE_DAILY","PERIOD"]
[425084805,1781475043000,-500.0,0.00019178,2]
[425084792,1781475043000,-500.0,0.00019178,2]
[425084825,1781475043000,-504.34336169,0.00019178,2]
[425084800,1781475043000,-500.0,0.00019178,2]
[425084791,1781475043000,-500.0,0.00019178,2]
[425084759,1781475043000,-500.0,0.00019178,2]
[425084757,1781475043000,-151.0,0.00019178,2]
[425084761,1781475043000,-2319.38,0.00019178,2]
[425084762,1781475043000,-500.0,0.00019178,2]
[425084766,1781475043000,-500.0,0.00019178,2]
[425084764,1781475043000,-500.0,0.00019178,2]
[425084763,1781475043000,-500.0,0.00019178,2]
[425084768,1781475043000,-500.0,0.00019178,2]
[425084770,1781475043000,-2900.06,0.00019178,2]
[425084771,1781475043000,-500.0,0.00019178,2]
[425084774,1781475043000,-5521.74,0.00019178,2]
[425084773,1781475043000,-500.0,0.00019178,2]
[425084779,1781475043000,-500.0,0.00019178,2]
[425084778,1781475043000,-3228.24,0.00019178,2]
[425084760,1781475043000,-500.0,0.00019178,2]
[425084777,1781475043000,-500.0,0.00019178,2]
[425084775,1781475043000,-500.0,0.00019178,2]
[425084799,1781475043000,-500.0,0.00019178,2]
[425084789,1781475043000,-725.66,0.00019178,2]
[425084798,1781475043000,-430.54158255,0.00019178,2]
[425084785,1781475043000,-500.0,0.00019178,2]
[425084776,1781475043000,-500.0,0.00019178,2]
[425084788,1781475043000,-500.0,0.00019178,2]
[425084786,1781475043000,-500.0,0.00019178,2]
[425084783,1781475043000,-500.0,0.00019178,2]
[425084784,1781475043000,-1000.0,0.00019178,2]
[425084782,1781475043000,-500.0,0.00019178,2]
[425084780,1781475043000,-500.0,0.00019178,2]
[425084787,1781475043000,-500.0,0.00019178,2]
[425084781,1781475043000,-774.35,0.00019178,2]
[425084879,1781475044000,-500.0,0.00019178,2]
[425084873,1781475044000,-500.0,0.00019178,2]
[425084876,1781475044000,-500.0,0.00019178,2]
[425084891,1781475044000,-500.0,0.00019178,2]
[425084870,1781475044000,-500.0,0.00019178,2]
[425084867,1781475044000,-500.0,0.00019178,2]
[425084862,1781475044000,-500.0,0.00019178,2]
[425084861,1781475044000,-1946.34,0.00019178,2]
[425084863,1781475044000,-507.88667059,0.00019178,2]
[425084866,1781475044000,-500.0,0.00019178,2]
[425084869,1781475044000,-500.0,0.00019178,2]
[425084877,1781475044000,-500.0,0.00019178,2]
[425084864,1781475044000,-500.0,0.00019178,2]
[425084883,1781475044000,-542.93,0.00019178,2]
[425084874,1781475044000,-501.26569415,0.00019178,2]
[425084875,1781475044000,-564.83748748,0.00019178,2]
[425084878,1781475044000,-502.7036062,0.00019178,2]
[425084872,1781475044000,-502.8863941,0.00019178,2]
[425084882,1781475044000,-500.0,0.00019178,2]
[425084885,1781475044000,-2235.77,0.00019178,2]
[425084884,1781475044000,-500.0,0.00019178,2]
[425084893,1781475044000,-3396.21,0.00019178,2]
[425084886,1781475044000,-4648.27,0.00019178,2]
[425084896,1781475044000,-500.0,0.00019178,2]
[425084887,1781475044000,-505.76586365,0.00019178,2]
[425084894,1781475044000,-671.46,0.00019178,2]
[425084888,1781475044000,-617.4197809,0.00019178,2]
[425084860,1781475044000,-628.95568878,0.00019178,2]
[425084880,1781475044000,-8039.82,0.00019178,2]
[425084857,1781475044000,-503.69891088,0.00019178,2]
[425084844,1781475044000,-31768.31,0.00019178,2]
[425084859,1781475044000,-500.0,0.00019178,2]
[425084829,1781475044000,-500.0,0.00019178,2]
[425084828,1781475044000,-500.0,0.00019178,2]
[425084831,1781475044000,-500.0,0.00019178,2]
[425084832,1781475044000,-500.0,0.00019178,2]
[425084830,1781475044000,-510.09889148,0.00019178,2]
[425084833,1781475044000,-500.0,0.00019178,2]
[425084841,1781475044000,-500.0,0.00019178,2]
[425084836,1781475044000,-500.0,0.00019178,2]
[425084835,1781475044000,-1500.78,0.00019178,2]
[425084834,1781475044000,-980.64,0.00019178,2]
[425084837,1781475044000,-2248.5,0.00019178,2]
[425084840,1781475044000,-500.0,0.00019178,2]
[425084839,1781475044000,-649.8281724,0.00019178,2]
[425084868,1781475044000,-500.0,0.00019178,2]
[425084838,1781475044000,-500.0,0.00019178,2]
[425084849,1781475044000,-500.0,0.00019178,2]
[425084847,1781475044000,-2186.99,0.00019178,2]
[425084848,1781475044000,-500.0,0.00019178,2]
[425084846,1781475044000,-349.29357617,0.00019178,2]
[425084853,1781475044000,-5315.12,0.00019178,2]
[425084850,1781475044000,-500.0,0.00019178,2]
[425084845,1781475044000,-500.0,0.00019178,2]
[425084843,1781475044000,-1737.62,0.00019178,2]
[425084856,1781475044000,-3473.08,0.00019178,2]
[425084852,1781475044000,-500.0,0.00019178,2]
[425084854,1781475044000,-500.0,0.00019178,2]
[425084855,1781475044000,-500.0,0.00019178,2]
[425084858,1781475044000,-513.94655758,0.00019178,2]
[425084842,1781475044000,-535.23895067,0.00019178,2]
[425084890,1781475044000,-512.08741554,0.00019178,2]
[425084871,1781475044000,-3543.09,0.00019178,2]
[425084892,1781475044000,-1447.86,0.00019178,2]
[425084924,1781475044000,-269.793396,0.00019178,2]
[425084931,1781475044000,-1257.1704,0.00019452,2]
[425084933,1781475044000,-4166.66,0.00019452,2]
[425084932,1781475044000,-1883.42,0.00019452,2]
[425084935,1781475044000,-500.0,0.00019452,2]
[425084934,1781475044000,-500.0,0.00019452,2]
[425084936,1781475044000,-500.0,0.00019452,2]
[425084938,1781475044000,-500.0,0.00019452,2]
[425084939,1781475044000,-151.0,0.00019452,2]
[425084941,1781475044000,-500.0,0.00019452,2]
[425084942,1781475044000,-500.0,0.00019452,2]
[425084944,1781475044000,-500.0,0.00019452,2]
[425084940,1781475044000,-151.0,0.00019452,2]
[425084943,1781475044000,-500.0,0.00019452,2]
[425084930,1781475044000,-522.14482587,0.00019424,2]
[425084945,1781475044000,-778.69,0.00019452,2]
[425084946,1781475044000,-500.0,0.00019452,2]
[425084947,1781475044000,-225.69809414,0.00019452,2]
[425084948,1781475044000,-500.0,0.00019452,2]
[425084951,1781475044000,-429.00859997,0.00019452,2]
[425084952,1781475044000,-500.0,0.00019452,2]
[425084949,1781475044000,-500.0,0.00019452,2]
[425084955,1781475044000,-592.13220894,0.00019452,2]
[425084958,1781475044000,-530.09434306,0.00019452,2]
[425084954,1781475044000,-500.0,0.00019452,2]
[425084953,1781475044000,-641.92288365,0.00019452,2]
[425084950,1781475044000,-500.0,0.00019452,2]
[425084957,1781475044000,-730.65,0.00019452,2]
[425084956,1781475044000,-507.11,0.00019452,2]
[425084889,1781475044000,-503.84940895,0.00019178,2]
[425084937,1781475044000,-500.0,0.00019452,2]
[425084929,1781475044000,-556.2509992,0.00019355,2]
[425084881,1781475044000,-500.0,0.00019178,2]
[425084927,1781475044000,-160.0,0.00019331,2]
[425084897,1781475044000,-500.0,0.00019178,2]
[425084899,1781475044000,-151.0,0.00019178,2]
[425084901,1781475044000,-184.7099,0.00019178,2]
[425084905,1781475044000,-731.03,0.00019178,2]
[425084903,1781475044000,-500.0,0.00019178,2]
[425084909,1781475044000,-269.793396,0.00019178,2]
[425084908,1781475044000,-269.793396,0.00019178,2]
[425084906,1781475044000,-269.793396,0.00019178,2]
[425084907,1781475044000,-269.793396,0.00019178,2]
[425084898,1781475044000,-500.0,0.00019178,2]
[425084904,1781475044000,-500.0,0.00019178,2]
[425084902,1781475044000,-500.0,0.00019178,2]
[425084911,1781475044000,-269.793396,0.00019178,2]
[425084919,1781475044000,-269.793396,0.00019178,2]
[425084900,1781475044000,-501.86994014,0.00019178,2]
[425084922,1781475044000,-269.793396,0.00019178,2]
[425084926,1781475044000,-522.14482587,0.00019187,2]
[425084925,1781475044000,-269.793401,0.00019178,2]
[425084923,1781475044000,-269.793396,0.00019178,2]
[425084918,1781475044000,-269.793396,0.00019178,2]
[425084920,1781475044000,-269.793396,0.00019178,2]
[425084915,1781475044000,-269.793396,0.00019178,2]
[425084917,1781475044000,-269.793396,0.00019178,2]
[425084916,1781475044000,-269.793396,0.00019178,2]
[425084913,1781475044000,-269.793396,0.00019178,2]
[425084928,1781475044000,-259.20244269,0.00019345,2]
[425084912,1781475044000,-269.793396,0.00019178,2]
[425084921,1781475044000,-269.793396,0.00019178,2]
[425084910,1781475044000,-269.793396,0.00019178,2]
[425084914,1781475044000,-269.793396,0.00019178,2]
[425084996,1781475045000,-500.0,0.00019452,2]
[425084995,1781475045000,-500.0,0.00019452,2]
[425084997,1781475045000,-500.0,0.00019452,2]
[425084994,1781475045000,-510.51,0.00019452,2]
[425085002,1781475045000,-765.65,0.00019452,2]
[425084989,1781475045000,-500.0,0.00019452,2]
[425084993,1781475045000,-735.59,0.00019452,2]
[425084992,1781475045000,-500.0,0.00019452,2]
[425084988,1781475045000,-500.0,0.00019452,2]
[425084987,1781475045000,-642.06,0.00019452,2]
[425084998,1781475045000,-500.0,0.00019452,2]
[425085000,1781475045000,-500.0,0.00019452,2]
[425084999,1781475045000,-500.0,0.00019452,2]
[425085006,1781475045000,-500.0,0.00019452,2]
[425085004,1781475045000,-500.0,0.00019452,2]
[425085003,1781475045000,-500.0,0.00019452,2]
[425085016,1781475045000,-844.18,0.00019452,2]
[425085005,1781475045000,-500.0,0.00019452,2]
[425085007,1781475045000,-500.0,0.00019452,2]
[425085015,1781475045000,-500.0,0.00019452,2]
[425085014,1781475045000,-500.0,0.00019452,2]
[425085010,1781475045000,-500.0,0.00019452,2]
[425085013,1781475045000,-500.0,0.00019452,2]
[425085012,1781475045000,-500.0,0.00019452,2]
[425085011,1781475045000,-508.83061726,0.00019452,2]
[425084990,1781475045000,-500.0,0.00019452,2]
[425085001,1781475045000,-500.0,0.00019452,2]
[425084986,1781475045000,-500.0,0.00019452,2]
[425084972,1781475045000,-500.0,0.00019452,2]
[425084982,1781475045000,-500.0,0.00019452,2]
[425084960,1781475045000,-503.85192146,0.00019452,2]
[425084961,1781475045000,-504.44371903,0.00019452,2]
[425084959,1781475045000,-500.0,0.00019452,2]
[425084962,1781475045000,-500.0,0.00019452,2]
[425084971,1781475045000,-500.0,0.00019452,2]
[425084974,1781475045000,-536.2,0.00019452,2]
[425084969,1781475045000,-500.0,0.00019452,2]
[425084964,1781475045000,-1246.9,0.00019452,2]
[425084963,1781475045000,-500.0,0.00019452,2]
[425084966,1781475045000,-500.0,0.00019452,2]
[425084965,1781475045000,-1320.96,0.00019452,2]
[425084973,1781475045000,-500.0,0.00019452,2]
[425084985,1781475045000,-500.0,0.00019452,2]
[425084968,1781475045000,-151.0,0.00019452,2]
[425084967,1781475045000,-500.0,0.00019452,2]
[425084970,1781475045000,-591.39,0.00019452,2]
[425084975,1781475045000,-558.69322891,0.00019452,2]
[425084977,1781475045000,-403.05879362,0.00019452,2]
[425084978,1781475045000,-500.0,0.00019452,2]
[425084979,1781475045000,-503.38378577,0.00019452,2]
[425084976,1781475045000,-500.0,0.00019452,2]
[425084980,1781475045000,-500.0,0.00019452,2]
[425084981,1781475045000,-500.0,0.00019452,2]
[425084983,1781475045000,-500.0,0.00019452,2]
[425084991,1781475045000,-500.0,0.00019452,2]
[425084984,1781475045000,-500.0,0.00019452,2]
[425085009,1781475045000,-500.0,0.00019452,2]
[425085017,1781475045000,-500.0,0.00019452,2]
[425085008,1781475045000,-500.0,0.00019452,2]
[425085019,1781475045000,-500.0,0.00019452,2]
[425085048,1781475045000,-500.0,0.00019452,2]
[425085051,1781475045000,-500.0,0.00019452,2]
[425085045,1781475045000,-500.0,0.00019452,2]
[425085050,1781475045000,-500.0,0.00019452,2]
[425085043,1781475045000,-506.09619297,0.00019452,2]
[425085049,1781475045000,-500.0,0.00019452,2]
[425085068,1781475045000,-500.0,0.00019452,2]
[425085065,1781475045000,-945.68,0.00019452,2]
[425085066,1781475045000,-500.0,0.00019452,2]
[425085063,1781475045000,-500.0,0.00019452,2]
[425085067,1781475045000,-500.0,0.00019452,2]
[425085059,1781475045000,-500.0,0.00019452,2]
[425085060,1781475045000,-500.0,0.00019452,2]
[425085056,1781475045000,-500.0,0.00019452,2]
[425085064,1781475045000,-587.00851424,0.00019452,2]
[425085061,1781475045000,-500.0,0.00019452,2]
[425085058,1781475045000,-502.47047637,0.00019452,2]
[425085057,1781475045000,-2879.16,0.00019452,2]
[425085062,1781475045000,-500.0,0.00019452,2]
[425085070,1781475045000,-500.0,0.00019452,2]
[425085069,1781475045000,-500.0,0.00019452,2]
[425085073,1781475045000,-500.0,0.00019452,2]
[425085018,1781475045000,-500.0,0.00019452,2]
[425085076,1781475045000,-509.02526647,0.00019452,2]
[425085072,1781475045000,-500.0,0.00019452,2]
[425085075,1781475045000,-953.89,0.00019452,2]
[425085074,1781475045000,-500.0,0.00019452,2]
[425085047,1781475045000,-500.0,0.00019452,2]
[425085052,1781475045000,-500.0,0.00019452,2]
[425085071,1781475045000,-500.0,0.00019452,2]
[425085044,1781475045000,-500.0,0.00019452,2]
[425085054,1781475045000,-500.0,0.00019452,2]
[425085029,1781475045000,-507.03244187,0.00019452,2]
[425085028,1781475045000,-500.0,0.00019452,2]
[425085026,1781475045000,-497.0443492,0.00019452,2]
[425085024,1781475045000,-500.0,0.00019452,2]
[425085025,1781475045000,-308.43140824,0.00019452,2]
[425085021,1781475045000,-500.0,0.00019452,2]
[425085020,1781475045000,-1996.52,0.00019452,2]
[425085022,1781475045000,-500.0,0.00019452,2]
[425085027,1781475045000,-500.0,0.00019452,2]
[425085041,1781475045000,-506.65925137,0.00019452,2]
[425085042,1781475045000,-290.86523516,0.00019452,2]
[425085031,1781475045000,-500.0,0.00019452,2]
[425085023,1781475045000,-500.0,0.00019452,2]
[425085032,1781475045000,-766.46,0.00019452,2]
[425085030,1781475045000,-500.0,0.00019452,2]
[425085046,1781475045000,-500.0,0.00019452,2]
[425085036,1781475045000,-500.0,0.00019452,2]
[425085039,1781475045000,-1491.05,0.00019452,2]
[425085037,1781475045000,-500.0,0.00019452,2]
[425085053,1781475045000,-208.32497253,0.00019452,2]
[425085033,1781475045000,-1192.43,0.00019452,2]
[425085038,1781475045000,-500.0,0.00019452,2]
[425085040,1781475045000,-500.0,0.00019452,2]
[425085034,1781475045000,-500.0,0.00019452,2]
[425085035,1781475045000,-1424.11,0.00019452,2]
[425085055,1781475045000,-1000.0,0.00019452,2]
[425085097,1781475046000,-500.0,0.00019452,2]
[425085104,1781475046000,-505.77217399,0.00019452,2]
[425085121,1781475046000,-500.0,0.00019452,2]
[425085101,1781475046000,-500.0,0.00019452,2]
[425085105,1781475046000,-500.0,0.00019452,2]
[425085106,1781475046000,-768.62,0.00019452,2]
[425085117,1781475046000,-500.0,0.00019452,2]
[425085114,1781475046000,-500.0,0.00019452,2]
[425085110,1781475046000,-500.0,0.00019452,2]
[425085115,1781475046000,-541.36983098,0.00019452,2]
[425085113,1781475046000,-500.0,0.00019452,2]
[425085120,1781475046000,-1277.78,0.00019452,2]
[425085109,1781475046000,-500.0,0.00019452,2]
[425085112,1781475046000,-500.0,0.00019452,2]
[425085111,1781475046000,-918.06,0.00019452,2]
[425085118,1781475046000,-543.63,0.00019452,2]
[425085116,1781475046000,-500.0,0.00019452,2]
[425085135,1781475046000,-500.0,0.00019452,2]
[425085130,1781475046000,-500.0,0.00019452,2]
[425085137,1781475046000,-1492.4,0.00019452,2]
[425085103,1781475046000,-500.0,0.00019452,2]
[425085124,1781475046000,-500.0,0.00019452,2]
[425085119,1781475046000,-500.0,0.00019452,2]
[425085108,1781475046000,-746.34,0.00019452,2]
[425085084,1781475046000,-648.85779028,0.00019452,2]
[425085098,1781475046000,-500.0,0.00019452,2]
[425085122,1781475046000,-500.0,0.00019452,2]
[425085080,1781475046000,-1307.91,0.00019452,2]
[425085081,1781475046000,-500.0,0.00019452,2]
[425085078,1781475046000,-500.0,0.00019452,2]
[425085079,1781475046000,-500.0,0.00019452,2]
[425085077,1781475046000,-500.0,0.00019452,2]
[425085082,1781475046000,-500.0,0.00019452,2]
[425085091,1781475046000,-366.7880942,0.00019452,2]
[425085083,1781475046000,-500.0,0.00019452,2]
[425085094,1781475046000,-500.0,0.00019452,2]
[425085093,1781475046000,-500.0,0.00019452,2]
[425085092,1781475046000,-534.20643844,0.00019452,2]
[425085086,1781475046000,-610.53,0.00019452,2]
[425085095,1781475046000,-504.26,0.00019452,2]
[425085085,1781475046000,-1272.44,0.00019452,2]
[425085090,1781475046000,-511.01322868,0.00019452,2]
[425085087,1781475046000,-619.18079644,0.00019452,2]
[425085089,1781475046000,-602.52665465,0.00019452,2]
[425085088,1781475046000,-500.0,0.00019452,2]
[425085096,1781475046000,-500.0,0.00019452,2]
[425085100,1781475046000,-415.2409204,0.00019452,2]
[425085107,1781475046000,-500.0,0.00019452,2]
[425085102,1781475046000,-1027.97,0.00019452,2]
[425085099,1781475046000,-504.67733584,0.00019452,2]
[425085132,1781475046000,-500.0,0.00019452,2]
[425085181,1781475046000,-627.54,0.00019452,2]
[425085127,1781475046000,-500.0,0.00019452,2]
[425085167,1781475046000,-500.0,0.00019452,2]
[425085168,1781475046000,-506.39682359,0.00019452,2]
[425085171,1781475046000,-2190.75,0.00019452,2]
[425085169,1781475046000,-500.0,0.00019452,2]
[425085173,1781475046000,-500.0,0.00019452,2]
[425085170,1781475046000,-500.0,0.00019452,2]
[425085175,1781475046000,-500.0,0.00019452,2]
[425085178,1781475046000,-5565.56,0.00019452,2]
[425085177,1781475046000,-500.0,0.00019452,2]
[425085180,1781475046000,-4321.79,0.00019452,2]
[425085189,1781475046000,-500.0,0.00019452,2]
[425085190,1781475046000,-500.0,0.00019452,2]
[425085179,1781475046000,-1767.89,0.00019452,2]
[425085182,1781475046000,-500.0,0.00019452,2]
[425085183,1781475046000,-1689.21,0.00019452,2]
[425085184,1781475046000,-500.0,0.00019452,2]
[425085186,1781475046000,-500.0,0.00019452,2]
[425085191,1781475046000,-500.0,0.00019452,2]
[425085192,1781475046000,-500.0,0.00019452,2]
[425085195,1781475046000,-500.0,0.00019452,2]
[425085193,1781475046000,-500.0,0.00019452,2]
[425085194,1781475046000,-2900.06,0.00019452,2]
[425085125,1781475046000,-500.0,0.00019452,2]
[425085164,1781475046000,-500.0,0.00019452,2]
[425085162,1781475046000,-500.0,0.00019452,2]
[425085188,1781475046000,-2319.38,0.00019452,2]
[425085160,1781475046000,-500.0,0.00019452,2]
[425085136,1781475046000,-813.37,0.00019452,2]
[425085163,1781475046000,-1641.49,0.00019452,2]
[425085138,1781475046000,-622.81,0.00019452,2]
[425085143,1781475046000,-500.0,0.00019452,2]
[425085141,1781475046000,-500.0,0.00019452,2]
[425085146,1781475046000,-1457.5,0.00019452,2]
[425085145,1781475046000,-1147.53,0.00019452,2]
[425085144,1781475046000,-500.0,0.00019452,2]
[425085142,1781475046000,-848.61,0.00019452,2]
[425085149,1781475046000,-500.0,0.00019452,2]
[425085151,1781475046000,-502.57048422,0.00019452,2]
[425085154,1781475046000,-542.77,0.00019452,2]
[425085140,1781475046000,-2485.05,0.00019452,2]
[425085148,1781475046000,-500.0,0.00019452,2]
[425085152,1781475046000,-500.0,0.00019452,2]
[425085150,1781475046000,-500.0,0.00019452,2]
[425085147,1781475046000,-500.0,0.00019452,2]
[425085153,1781475046000,-2246.14,0.00019452,2]
[425085155,1781475046000,-501.74080165,0.00019452,2]
[425085156,1781475046000,-500.0,0.00019452,2]
[425085165,1781475046000,-500.0,0.00019452,2]
[425085166,1781475046000,-500.0,0.00019452,2]
[425085157,1781475046000,-1087.24,0.00019452,2]
[425085158,1781475046000,-500.0,0.00019452,2]
[425085240,1781475047000,-500.0,0.00019452,2]
[425085233,1781475047000,-500.0,0.00019452,2]
[425085236,1781475047000,-500.0,0.00019452,2]
[425085232,1781475047000,-2405.11,0.00019452,2]
[425085235,1781475047000,-500.0,0.00019452,2]
[425085228,1781475047000,-500.0,0.00019452,2]
[425085230,1781475047000,-500.0,0.00019452,2]
[425085227,1781475047000,-500.0,0.00019452,2]
[425085229,1781475047000,-511.23471045,0.00019452,2]
[425085241,1781475047000,-1387.05,0.00019452,2]
[425085223,1781475047000,-500.0,0.00019452,2]
[425085234,1781475047000,-500.0,0.00019452,2]
[425085237,1781475047000,-782.01,0.00019452,2]
[425085243,1781475047000,-500.0,0.00019452,2]
[425085231,1781475047000,-5245.53,0.00019452,2]
[425085242,1781475047000,-500.0,0.00019452,2]
[425085239,1781475047000,-500.0,0.00019452,2]
[425085244,1781475047000,-506.51239559,0.00019452,2]
[425085255,1781475047000,-500.0,0.00019452,2]
[425085254,1781475047000,-2248.5,0.00019452,2]
[425085245,1781475047000,-500.0,0.00019452,2]
[425085247,1781475047000,-500.0,0.00019452,2]
[425085246,1781475047000,-500.0,0.00019452,2]
[425085249,1781475047000,-500.0,0.00019452,2]
[425085248,1781475047000,-500.0,0.00019452,2]
[425085226,1781475047000,-1294.87,0.00019452,2]
[425085238,1781475047000,-720.52,0.00019452,2]
[425085225,1781475047000,-500.0,0.00019452,2]
[425085200,1781475047000,-505.39516168,0.00019452,2]
[425085222,1781475047000,-500.0,0.00019452,2]
[425085251,1781475047000,-980.64,0.00019452,2]
[425085196,1781475047000,-505.9789533,0.00019452,2]
[425085199,1781475047000,-500.0,0.00019452,2]
[425085198,1781475047000,-500.0,0.00019452,2]
[425085197,1781475047000,-5521.74,0.00019452,2]
[425085201,1781475047000,-3228.24,0.00019452,2]
[425085203,1781475047000,-500.0,0.00019452,2]
[425085205,1781475047000,-500.0,0.00019452,2]
[425085204,1781475047000,-774.35,0.00019452,2]
[425085210,1781475047000,-500.0,0.00019452,2]
[425085202,1781475047000,-506.88938564,0.00019452,2]
[425085209,1781475047000,-260.98294479,0.00019452,2]
[425085221,1781475047000,-500.0,0.00019452,2]
[425085206,1781475047000,-565.00863659,0.00019452,2]
[425085208,1781475047000,-500.0,0.00019452,2]
[425085212,1781475047000,-392.5806744,0.00019452,2]
[425085211,1781475047000,-500.0,0.00019452,2]
[425085213,1781475047000,-725.66,0.00019452,2]
[425085215,1781475047000,-500.0,0.00019452,2]
[425085214,1781475047000,-858.74,0.00019452,2]
[425085217,1781475047000,-659.92,0.00019452,2]
[425085216,1781475047000,-502.51856446,0.00019452,2]
[425085219,1781475047000,-500.0,0.00019452,2]
[425085218,1781475047000,-506.65543786,0.00019452,2]
[425085220,1781475047000,-500.0,0.00019452,2]
[425085224,1781475047000,-500.0,0.00019452,2]
[425085207,1781475047000,-1000.0,0.00019452,2]
[425085250,1781475047000,-500.0,0.00019452,2]
[425085294,1781475047000,-500.0,0.00019452,2]
[425085253,1781475047000,-500.0,0.00019452,2]
[425085282,1781475047000,-8039.82,0.00019452,2]
[425085285,1781475047000,-542.93,0.00019452,2]
[425085286,1781475047000,-500.0,0.00019452,2]
[425085290,1781475047000,-1447.86,0.00019452,2]
[425085289,1781475047000,-500.0,0.00019452,2]
[425085287,1781475047000,-2235.77,0.00019452,2]
[425085291,1781475047000,-3396.21,0.00019452,2]
[425085288,1781475047000,-4648.27,0.00019452,2]
[425085292,1781475047000,-671.46,0.00019452,2]
[425085297,1781475047000,-500.0,0.00019452,2]
[425085296,1781475047000,-500.0,0.00019452,2]
[425085308,1781475047000,-1602.16,0.00019637,3]
[425085284,1781475047000,-500.0,0.00019452,2]
[425085304,1781475047000,-161.39,0.00019589,2]
[425085307,1781475047000,-521.83769741,0.00019632,2]
[425085303,1781475047000,-1511.08307521,0.00019571,2]
[425085299,1781475047000,-731.03,0.00019452,2]
[425085300,1781475047000,-650.62582501,0.0001947,7]
[425085298,1781475047000,-565.44721395,0.00019452,2]
[425085301,1781475047000,-1965.21638549,0.00019518,2]
[425085302,1781475047000,-522.14482587,0.00019523,2]
[425085310,1781475047000,-400.54,0.00019637,3]
[425085313,1781475047000,-522.14482587,0.00019725,2]
[425085312,1781475047000,-522.14482587,0.00019685,2]
[425085309,1781475047000,-801.08,0.00019637,3]
[425085252,1781475047000,-1500.78,0.00019452,2]
[425085305,1781475047000,-160.0,0.000196,2]
[425085295,1781475047000,-500.0,0.00019452,2]
[425085306,1781475047000,-310.11,0.00019606,2]
[425085283,1781475047000,-500.0,0.00019452,2]
[425085257,1781475047000,-362.17763691,0.00019452,2]
[425085311,1781475047000,-310.11,0.00019656,2]
[425085259,1781475047000,-31768.31,0.00019452,2]
[425085258,1781475047000,-1737.62,0.00019452,2]
[425085267,1781475047000,-500.0,0.00019452,2]
[425085264,1781475047000,-500.0,0.00019452,2]
[425085256,1781475047000,-500.0,0.00019452,2]
[425085262,1781475047000,-500.0,0.00019452,2]
[425085260,1781475047000,-500.0,0.00019452,2]
[425085263,1781475047000,-500.0,0.00019452,2]
[425085266,1781475047000,-5315.12,0.00019452,2]
[425085261,1781475047000,-2186.99,0.00019452,2]
[425085269,1781475047000,-3473.08,0.00019452,2]
[425085281,1781475047000,-500.0,0.00019452,2]
[425085265,1781475047000,-500.0,0.00019452,2]
[425085279,1781475047000,-500.0,0.00019452,2]
[425085293,1781475047000,-500.0,0.00019452,2]
[425085277,1781475047000,-3543.09,0.00019452,2]
[425085278,1781475047000,-500.0,0.00019452,2]
[425085275,1781475047000,-500.0,0.00019452,2]
[425085273,1781475047000,-500.0,0.00019452,2]
[425085274,1781475047000,-500.0,0.00019452,2]
[425085276,1781475047000,-500.0,0.00019452,2]
[425085270,1781475047000,-500.0,0.00019452,2]
[425085272,1781475047000,-1946.34,0.00019452,2]